Cogmind - Beta 9 *** ADVENTURER MODE // 2019.10.25 @ 21:08:38 Player: Armok Result: Self-destructed Performance ------------- Evolutions (2) 1000 Regions Visited (5) 1000 Robots Destroyed (15) 75 Value Destroyed (246) 246 Prototype IDs (0) 0 Alien Tech Used (0) 0 Bonus (0) 0 TOTAL SCORE: 2321 Bonus ------- None Cogmind --------- Core Integrity 488/550 Matter 156/300 Energy 125/125 System Corruption 0% Temperature Cool (9) Location -8/Materials Parts ------- Power (1) Light Ion Engine Propulsion (3) Compact Wheel Compact Wheel Armored Wheel Utility (5) Humpback Improved Targeting Computer Hardened Light Armor Plating Hardened Light Armor Plating Weapon (2) Inventory (24) Light Ion Engine Wheel Flight Unit Flight Unit Humpback Visual Processing Unit Hardened Light Armor Plating Hardlight Generator Hacking Suite EM Shotgun Heavy Particle Cannon Light Assault Rifle Grenade Launcher Peak State ------------ Power Light Ion Engine Propulsion Compact Wheel Compact Wheel Armored Wheel Utility Humpback Improved Targeting Computer Hardened Light Armor Plating Hardened Light Armor Plating Weapon Assault Rifle Light Cannon Inventory Light Ion Engine Nuclear Core Wheel Flight Unit Flight Unit Humpback Visual Processing Unit Hardened Light Armor Plating Hardlight Generator Hacking Suite EM Shotgun Heavy Particle Cannon Light Assault Rifle Grenade Launcher [Rating: 17] Favorites ----------- Power Light Ion Engine Engine Light Ion Engine Propulsion Wheel Wheel Wheel Utility Hardened Light Armor Plating Storage Humpback Processor Improved Targeting Computer Protection Hardened Light Armor Plating Weapon Light Cannon Energy Gun EM Pulse Gun Ballistic Gun Assault Rifle Ballistic Cannon Light Cannon Build | -11 -10 -10 -10 -9 -8 ------- Run | Scr Mat Min Exi Min Mat Slots Evolved 4 | . . . . . 4 Power . | . . . . . . Propulsion 1 | . . . . . 1 Utility 3 | . . . . . 3 Weapon . | . . . . . . Parts Attached 18 | 6 1 2 1 . 8 Power 2 | 1 . . . . 1 Engine 2 | 1 . . . . 1 Core . | . . . . . . Reactor . | . . . . . . Propulsion 5 | 2 . . . . 3 Treads . | . . . . . . Leg . | . . . . . . Wheel 5 | 2 . . . . 3 Hover . | . . . . . . Flight . | . . . . . . Utility 7 | 1 1 . 1 . 4 Device . | . . . . . . Storage 2 | 1 . . 1 . . Processor 1 | . . . . . 1 Hackware . | . . . . . . Protection 4 | . 1 . . . 3 Artifact . | . . . . . . Weapon 4 | 2 . 2 . . . Energy Gun 2 | 2 . . . . . Energy Cannon . | . . . . . . Ballistic Gun 1 | . . 1 . . . Ballistic Cannon 1 | . . 1 . . . Launcher . | . . . . . . Special Weapon . | . . . . . . Impact Weapon . | . . . . . . Slashing Weapon . | . . . . . . Piercing Weapon . | . . . . . . Special Melee Weapon . | . . . . . . Unidentified Prototypes . | . . . . . . Parts Lost 4 | . . . . . 4 Power 1 | . . . . . 1 Propulsion 1 | . . . . . 1 Utility . | . . . . . . Weapon 2 | . . . . . 2 Highest Loss Streak 2 | . . . . . 2 Average Slot Usage (%) 91 | . 96 100 89 85 86 Engine 13 | . 14 14 14 14 8 Wheel 27 | . 28 28 28 28 25 Storage 13 | . 14 14 13 14 9 Protection 9 | . 11 14 4 . 21 Energy Gun 2 | . 28 2 . . . Ballistic Gun 11 | . . 12 14 14 8 Ballistic Cannon 11 | . . 12 14 14 8 Naked Turns . | . . . . . . Heaviest Build 103 | 11 16 17 88 88 103 Greatest Support 44 | 26 26 26 26 26 44 Greatest Overweight (x) 3 | . . . 3 3 3 Average Overweight (x) 1 | . . . 1 3 2 Largest Inventory Capacity 24 | 6 6 6 24 24 24 Average Capacity 16 | 5 6 6 18 24 24 Most Carried 16 | 4 6 6 9 16 16 Average Carried 8 | 1 5 5 7 12 13 Final Capacity 24 | . . . . . 24 Final Carried 14 | . . . . . 14 Class Distribution -------------------- 58% | Hauler-Mutant 41% | Mutant Dominant Class ---------------- Mutant | -10/Materials Mutant | -10/Mines Hauler-Mutant | -10/Exiles Hauler-Mutant | -9/Mines Hauler-Mutant | -8/Materials Resources | -11 -10 -10 -10 -9 -8 ----------- Run | Scr Mat Min Exi Min Mat Matter Collected 433 | 243 13 34 . 73 70 Remotely . | . . . . . . Salvage Created 314 | . 13 . . 219 82 Parts 26 | . 2 . . 14 10 Haulers Intercepted . | . . . . . . Recyclers Shooed 2 | . . . . 1 1 Parts Field Recycled . | . . . . . . Retrieved Matter . | . . . . . . Parts Self-Destructed . | . . . . . . Prevented . | . . . . . . Kills | -11 -10 -10 -10 -9 -8 ------- Run | Scr Mat Min Exi Min Mat Combat Hostiles Destroyed 12 | . . . . 7 5 Guns 8 | . . . . 5 3 Cannons 4 | . . . . 2 2 Classes Destroyed 5 | . 1 . . 3 1 Recycler 1 | . . . . 1 . Watcher 2 | . 1 . . . 1 Swarmer 10 | . . . . 6 4 Grunt 1 | . . . . 1 . Hunter 1 | . . . . . 1 Best Kill Streak 4 | . 1 . . 4 2 Combat Bots Only 4 | . . . . 4 2 Max Kills in Single Turn 2 | . 1 . . 2 2 Gunslinging . | . . . . . . Exploded . | . . . . . . Melee . | . . . . . . Uniques/NPCs Destroyed . | . . . . . . Combat | -11 -10 -10 -10 -9 -8 -------- Run | Scr Mat Min Exi Min Mat Damage Taken 621 | . . . . 70 551 Core 68 | . . . . 6 62 Absorbed by Shields . | . . . . . . Core Remaining (%) 98 | 100 . . . 97 . Volleys Fired 33 | . 2 . . 9 22 Largest 2 | . 2 . . 2 2 Hottest 90 | . 90 . . 55 55 Shots Fired 66 | . 4 . . 18 44 Gun 35 | . 4 . . 9 22 Cannon 31 | . . . . 9 22 Launcher . | . . . . . . Special . | . . . . . . Kinetic 62 | . . . . 18 44 Thermal 2 | . 2 . . . . Explosive . | . . . . . . Electromagnetic 2 | . 2 . . . . Robot Hit Streak 12 | . 3 . . 8 12 Robot Miss Streak 3 | . 1 . . 1 3 Penetration Max . | . . . . . . Secondary Targets . | . . . . . . Shots Hit Robots 49 | . 3 . . 11 35 Core Hits 18 | . 1 . . 8 9 Critical Hits . | . . . . . . Critical Kills . | . . . . . . Critical Parts Destroyed . | . . . . . . Melee Attacks . | . . . . . . Impact . | . . . . . . Slashing . | . . . . . . Piercing . | . . . . . . Sneak Attacks . | . . . . . . Combat Hostiles . | . . . . . . Follow-up Attacks . | . . . . . . Damage Inflicted 656 | . 44 . . 183 429 Guns 357 | . 24 . . 116 217 Cannons 279 | . . . . 67 212 Explosions 20 | . 20 . . . . Melee . | . . . . . . Ramming . | . . . . . . Kinetic 612 | . . . . 183 429 Thermal 20 | . 20 . . . . Explosive . | . . . . . . Electromagnetic 24 | . 24 . . . . Impact . | . . . . . . Slashing . | . . . . . . Piercing . | . . . . . . Highest Corruption . | . . . . . . Average Corruption . | . . . . . . Corruption Purged . | . . . . . . Overload Shots . | . . . . . . Overflow Damage . | . . . . . . Projectiles . | . . . . . . Explosions . | . . . . . . Melee . | . . . . . . Knockbacks 3 | . . . . . 3 Impact . | . . . . . . Kinetic 3 | . . . . . 3 Secondary . | . . . . . . Self-Inflicted Damage . | . . . . . . Shots . | . . . . . . Rammed . | . . . . . . Targets Rammed . | . . . . . . Kicked . | . . . . . . Crushed . | . . . . . . Highest Temperature 114 | . 105 . . 6 114 Average Temperature 39 | . 57 . . 3 39 Received Heat Transfer 99 | . . . . 18 81 Siege Activations . | . . . . . . Robots Corrupted . | . . . . . . Combat Hostiles . | . . . . . . Parts Fried . | . . . . . . Impact Corruptions . | . . . . . . Robots Melted . | . . . . . . Combat Hostiles . | . . . . . . Parts Melted . | . . . . . . Heat Transferred 50 | . 50 . . . . Parts Sabotaged . | . . . . . . Parts Stolen . | . . . . . . Parts Stripped . | . . . . . . Power Chain Reactions 1 | . 1 . . . . Missiles Intercepted . | . . . . . . Alert | -11 -10 -10 -10 -9 -8 ------- Run | Scr Mat Min Exi Min Mat Peak Influence 211 | . 22 7 . 174 211 Average Influence 59 | . 5 7 . 91 128 Maximum Alert Level 1 | . . . . . 1 Low Security (%) 95 | . . . . . . Level 1 4 | . . . . . . Level 2 . | . . . . . . Level 3 . | . . . . . . Level 4 . | . . . . . . Level 5 . | . . . . . . High Security . | . . . . . . Max Security . | . . . . . . Squads Dispatched . | . . . . . . Investigation . | . . . . . . Extermination . | . . . . . . Reinforcement . | . . . . . . Assault . | . . . . . . Garrison . | . . . . . . Intercept . | . . . . . . Construction Impeded . | . . . . . . Haulers Reinforced . | . . . . . . Stealth | -11 -10 -10 -10 -9 -8 --------- Run | Scr Mat Min Exi Min Mat Distress Signals 2 | . . . . . 2 Communications Jammed . | . . . . . . Distress Signals . | . . . . . . Times Spotted 30 | . 2 . . 10 18 Peak Tracking Total 7 | . 2 . . 4 7 Tactical Retreats 4 | . . . . 2 2 Traps | -11 -10 -10 -10 -9 -8 ------- Run | Scr Mat Min Exi Min Mat Traps Triggered . | . . . . . . Indirectly . | . . . . . . Trap Hack Attempts . | . . . . . . Triggered . | . . . . . . Disarmed . | . . . . . . Reprogrammed . | . . . . . . Reused . | . . . . . . Traps Extracted . | . . . . . . Installed . | . . . . . . Triggered . | . . . . . . Exploded 1 | . . . . . 1 Machines | -11 -10 -10 -10 -9 -8 ---------- Run | Scr Mat Min Exi Min Mat Machines Disabled 1 | . . . . 1 . Max in Single Turn 1 | . . . . 1 . Machines Sabotaged . | . . . . . . Garrisons Compromised . | . . . . . . Overloaded Fab Kills . | . . . . . . Fab Network Shutdowns . | . . . . . . Hacking | -11 -10 -10 -10 -9 -8 --------- Run | Scr Mat Min Exi Min Mat Machines Accessed 7 | . 2 . 4 . 1 Terminals 3 | . 2 . . . 1 Fabricators . | . . . . . . Repair Stations . | . . . . . . Recycling Units . | . . . . . . Scanalyzers . | . . . . . . Garrison Access . | . . . . . . Total Hacks 52 | . 2 . 48 . 2 Successful 50 | . 1 . 48 . 1 Failed 2 | . 1 . . . 1 Catastrophic . | . . . . . . Database Lockouts . | . . . . . . Manual . | . . . . . . Terminals 4 | . 2 . . . 2 Fabricators . | . . . . . . Repair Stations . | . . . . . . Recycling Units . | . . . . . . Scanalyzers . | . . . . . . Garrison Access . | . . . . . . Terminal Hacks 50 | . 1 . 48 . 1 Record 48 | . . . 48 . . Alert Level 1 | . . . . . 1 Dispatch Records 1 | . 1 . . . . Fabricator Hacks . | . . . . . . Repair Station Hacks . | . . . . . . Recycling Unit Hacks . | . . . . . . Scanalyzer . | . . . . . . Garrison Access Hacks . | . . . . . . Unauthorized Hacks . | . . . . . . Terminals . | . . . . . . Fabricators . | . . . . . . Repair Stations . | . . . . . . Recycling Units . | . . . . . . Scanalyzers . | . . . . . . Garrison Access . | . . . . . . Data Cores Recovered . | . . . . . . Used . | . . . . . . Hacking Detections 1 | . 1 . . . . Full Trace Events . | . . . . . . Feedback Events . | . . . . . . Feedback Blocked . | . . . . . . Robot Schematics Acquired . | . . . . . . Robots Built . | . . . . . . Matter . | . . . . . . Time . | . . . . . . Total Robot Build Rating . | . . . . . . Part Schematics Acquired . | . . . . . . Parts Built . | . . . . . . Matter . | . . . . . . Time . | . . . . . . Total Part Build Rating . | . . . . . . Parts Repaired . | . . . . . . Time . | . . . . . . Parts Recycled . | . . . . . . Recycled Matter . | . . . . . . Retrieved Matter . | . . . . . . Retrieved Components . | . . . . . . Parts Scanalyzed . | . . . . . . Part Schematics Acquired . | . . . . . . Parts Damaged . | . . . . . . Bothacking | -11 -10 -10 -10 -9 -8 ------------ Run | Scr Mat Min Exi Min Mat Used RIF Installer . | . . . . . . Robots Hacked . | . . . . . . Non-combat . | . . . . . . Combat . | . . . . . . Robot Hacks Applied . | . . . . . . Relay Couplers Released . | . . . . . . Robots Rewired . | . . . . . . Allies Hacked . | . . . . . . Hacks Repelled . | . . . . . . Allies | -11 -10 -10 -10 -9 -8 -------- Run | Scr Mat Min Exi Min Mat Total Allies . | . . . . . . Largest Group . | . . . . . . Highest-Rated Group . | . . . . . . Highest-Rated Ally . | . . . . . . Total Orders . | . . . . . . Ally Attacks . | . . . . . . Total Damage . | . . . . . . Kills . | . . . . . . Allies Corrupted . | . . . . . . Allies Melted . | . . . . . . Intel | -11 -10 -10 -10 -9 -8 ------- Run | Scr Mat Min Exi Min Mat Robot Analysis Total . | . . . . . . Derelict Logs Recovered 4 | . . 3 . 1 . Drone Launches . | . . . . . . Drone Recoveries . | . . . . . . Exploration | -11 -10 -10 -10 -9 -8 ------------- Run | Scr Mat Min Exi Min Mat Turns Passed 1719 | 48 137 288 797 156 293 Spaces Moved 1490 | 42 124 313 723 101 187 Core 9 | 9 . . . . . Treads . | . . . . . . Legs . | . . . . . . Wheels 1481 | 33 124 313 723 101 187 Hover . | . . . . . . Flight . | . . . . . . Fastest Speed 50 | 50 90 90 90 120 106 Average Speed 103 | 81 90 90 108 120 109 Slowest Speed 120 | 90 90 90 120 120 120 Overloaded Moves . | . . . . . . Propulsion Burnouts . | . . . . . . Robots Hopped . | . . . . . . Cave-ins Triggered . | . . . . . . Exploration Rate (%) 37 | 4 21 74 91 16 20 Regions Visited 5 Branch Regions 3 Pre-discovered Areas 2 | . . 1 1 . . Known Exits Taken 1 | . . . . 1 . Unknown Exits Taken 4 | 1 1 1 1 . . Scrap Searched 1 | . . 1 . . . Spaces Dug . | . . . . . . Terrain Destroyed 3 | . 3 . . . . Melee . | . . . . . . Projectile . | . . . . . . AOE 3 | . 3 . . . . Actions | -11 -10 -10 -10 -9 -8 --------- Run | Scr Mat Min Exi Min Mat Total 1609 | 55 145 320 738 118 233 Wait 24 | . 14 3 1 2 4 Move 1485 | 41 123 312 722 100 187 Hop . | . . . . . . Pick Up 38 | 8 5 1 9 7 8 Fast Attach . | . . . . . . Attach 16 | 6 1 2 1 . 6 Detach . | . . . . . . Swap 2 | . . . . . 2 Drop 11 | . . 2 5 . 4 Fire 33 | . 2 . . 9 22 Melee . | . . . . . . Ram . | . . . . . . Kick . | . . . . . . Crush . | . . . . . . Escape Stasis . | . . . . . . Rewire . | . . . . . . Trap . | . . . . . . Miscellaneous . | . . . . . . Route ------- -11/Scrapyard -10/Materials -10/Mines (discovered 2 exits: [*Mat] / *Exi) -10/Exiles (discovered 2 exits: [*Min x2]) -9/Mines -8/Materials History --------- Turn | Location | Event 5 | -11/Scrapyard | Discovered new exit (range 16) 49 | -11/Scrapyard | Entered Materials 149 | -10/Materials | Discovered new exit (range 15) 186 | -10/Materials | Entered Mines 194 | -10/Mines | Met a Derelict bent on vengeance 201 | -10/Mines | Learned location of Zion (-7) 313 | -10/Mines | Build established: Mutant 419 | -10/Mines | Discovered new exit (range 5) 470 | -10/Mines | Deemed a non-threat by the Exiles lab entrance 471 | -10/Mines | Discovered new exit (range 5) 474 | -10/Mines | Entered Exiles 491 | -10/Exiles | Discovered new exit (range 15) 503 | -10/Exiles | Met 8R-AWN 522 | -10/Exiles | Met EX-HEX 575 | -10/Exiles | Met EX-BIN 667 | -10/Exiles | Met EX-DEC 767 | -10/Exiles | Discovered new exit (range 14) 876 | -10/Exiles | Visited The Gauntlet 1017 | -10/Exiles | Build established: Hauler-Mutant 1271 | -10/Exiles | Entered Mines 1313 | -9/Mines | Identified exit to Materials 1332 | -9/Mines | Excavation squad dispatched 1332 | -9/Mines | A large section of the Mines collapsed 1427 | -9/Mines | Entered Materials 1427 | -8/Materials | Evolved 4 slots: Propulsion x1, Utility x3 1720 | -8/Materials | Self-destructed Last Messages --------------- 01640_ Acquired 9 matter. 01641_ Acquired 6 matter. 01641_ K-01 Serf collects debris. 01642_ Acquired 17 matter. 01646_ K-01 Serf collects debris. 01648_ Acquired EM Shotgun. 01650_ K-01 Serf collects debris. 01678_ Acquired Arm. Wheel. 01696_ Assault Rifle destroyed. 01699_ Dropped Rigged Nuclear Core. 01706_ Lgt. Cannon destroyed. 01707_ Rigged Nuclear Core explodes. 01707_ B-36 Bruiser destroyed. 01707_ Pressure Siphon disabled. 01708_ U-05 Engineer lays Concrete. 01715_ R-06 Scavenger collects Lgt. Treads. 01716_ U-05 Engineer lays Concrete. 01718_ R-06 Scavenger collects Rnf. Ion Engine. 01718_ U-05 Engineer lays Concrete. [Achievement: This Is Interesting...] Map ----- +----------------------------------------------------+ | ??????????????????????# # ! #????????????? | | ??????????????????????# # !! """ #????????????? | | ??????????????????????# # ! """ #????????????? | | ???????????????######## # """ #????????????? | | ???????????????# # # #????????????? | | ???????????????# # # ! #????????????? | | ???????????????# / ###########????????????? | | ???????????????# # ####???????????????????? | | ???????????????# ! # !!##??????????????????? | | ???????????????# ! # !#??????????????????? | | ???????????????######## !#??????????????????? | | ??????????????????????#t !#??????????????????? | | ??????????????????????# !#??????????????????? | | ??????????????????????# !!##??????#####???????? | | ??????????????????????# a####?????? ???????? | | ??????????????????????# #????????? ????????? | | ??????????????????????#t #???????? """ ????????? | | ??????????????????????# ########? """ ???????? | | ??????????????????????# # """ ???????? | | ??????????????????????# # """ #??????? | | ??????????????????????# "" + """ #??????? | | ??????????????????????# Y" # #??????? | | ??????????????????????# "" # #??????? | | ??????????????????????# ] ##?########??????? | | ??????????????????????# #?? ?????????? | | ??????????????????????# @ w #? """ ?????????? | | ??????????????????????# #? """ "#???????? | | ??????????????????????# # """ "#???????? | | ??????????????????????# """ # T#???????? | | ??????????????????????# """ + """ "????????? | | ??????????????????????# gg""" # """ "????????? | | ??????????????????????# %%%% [# """ "????????? | | ??????????????????##### % % #? ????????? | | ??????????????????# r #?########???????? | | ??????????????????# u #????????????????? | | ??????????????????# #????????????????? | | ??????????????????# g###########????????????????? | | ??????????????????# g#??????????????????????????? | | ??????????????????# #??????????????????????????? | | ??????????????????# #??????????????????????????? | | ??????????????????# #??????????????????????????? | | ??????????????????# #??????????????????????????? | | ??????????????????# #??????????????????????????? | | ??????????????????# #??????????????????????????? | | ??????????????????# #??????????????????????????? | | ??????????????????# #??????????????????????????? | | ??????????????????# #??????????????????????????? | | ??????????????????# ??????????????????????????? | | ??????????????????# ??????????????????????????? | | ??????????????????+ ??????????????????????????? | +----------------------------------------------------+ Best States ------------- Heat Dissipation 31 Energy Generation 10 Energy Capacity 125 Matter Stores 300 Matter Capacity 300 Sight Range 16 Terrain Scan Density 10 Armor Coverage 450 Resistance: KI 20 Resistance: TH 20 Resistance: EX 20 Resistance: EM 20 Resistance: I 20 Resistance: S 20 Resistance: P 20 Evasion (%) 50 Targeting Accuracy 6 Item Schematics ----------------- None Robot Schematics ------------------ None Fabricated ------------ Nothing Alien Tech Used ----------------- None Achievements -------------- This Is Interesting... Challenges ------------ None Game ------ Seed MiningGodReactor Manual? 0 Play Time 00:17:20 Cumulative 48.6 hours Start 2019.10.25 @ 20:55:11 End 2019.10.25 @ 21:08:38 Sessions 1 Manual Loads 0 Difficulty Adventurer Special Mode None Game No. 88 Rogue 78 Adventurer 5 Explorer 0 Win Type - Total 0 Types 0/0/0/0/0/0/0 Lore% 27 Gallery% 43 Achievement% 30 Wizard Run 0 Options --------- ASCII 0 Keyboard 0 Movement Numpad Keybinds 0 Fullscreen 1 Font 12/Tallcaps Map View 83x54 Tactical HUD 1 Map Filters NONE Filters NONE Steam 1 RUN: be7f902b-4b56-4f3f-8120-dea971518764